bitfinex-derivatives/quotes_SOLF0:USTF0_20241120
["timestamp","ask_amount","ask_price","bid_price","bid_amount"]
[1732097512746,2.2,237.49,237.41,6.53494545]
[1732097513242,2.2,237.49,237.46,2.1036]
[1732097513846,6.53494545,237.5,237.46,2.1036]
[1732097514343,2.2,237.51,237.48,2.1034]
[1732097514548,6.53494545,237.54,237.45,6.53494545]
[1732097514747,2.2,237.54,237.43,10.20627965]
[1732097515442,2.2,237.54,237.5,2.1031]
[1732097515638,3.659,237.64,237.46,10.20627965]
[1732097515639,10.20627965,237.61,237.46,10.20627965]
[1732097515849,2.2,237.6,237.46,10.20627965]
[1732097517346,2.2,237.6,237.56,2.1027]
[1732097517550,30.3,237.69,237.52,10.20627965]
[1732097517551,32.38082912,237.69,237.52,10.20627965]
[1732097517744,10.20627965,237.67,237.53,2.4946]
[1732097517943,12.30807965,237.67,237.53,2.4946]
[1732097518148,12.30807965,237.67,237.53,3.73]
[1732097518443,10.20627965,237.67,237.6,2.1023]
[1732097518649,10.20627965,237.67,237.53,3.73]
[1732097519748,10.20627965,237.64,237.53,3.73]
[1732097520046,10.20627965,237.61,237.46,2.2]
[1732097520251,2.2,237.6,237.46,4.7325]
[1732097520546,2.2,237.6,237.47,10.20627965]
[1732097520847,2.2,237.6,237.5,2.1031]
[1732097521045,2.2,237.6,237.47,10.20627965]
[1732097521446,2.2,237.6,237.5,2.1031]
[1732097521649,2.2,237.6,237.47,10.20627965]
[1732097523850,2.2,237.6,237.47,10.20627965]
[1732097524553,2.2,237.6,237.54,2.1028]
[1732097525151,2.2,237.6,237.55,2.1028]
[1732097525352,2.2,237.6,237.5,10.20627965]
[1732097525651,2.2,237.6,237.53,2.1029]
[1732097525852,2.2,237.6,237.48,7.64955412]
[1732097526053,2.2,237.6,237.49,5.1249557]
[1732097526251,2.2,237.6,237.5,2.1031]
[1732097526446,2.2,237.6,237.47,10.20627965]
[1732097526655,2.2,237.6,237.48,7.65398745]
[1732097526858,2.2,237.6,237.49,7.65398745]
[1732097527054,2.2,237.6,237.53,2.1029]
[1732097528562,2.2,237.6,237.54,2.1028]
[1732097529864,2.2,237.6,237.48,2.52516557]
[1732097530163,2.2,237.6,237.52,2.103]
[1732097530663,2.1024,237.59,237.53,2.1029]
[1732097532067,2.2,237.6,237.46,12.73877965]
[1732097532267,2.2,237.6,237.55,2.1028]
[1732097532670,2.2,237.6,237.46,12.73877965]
[1732097532973,2.2,237.6,237.55,2.1027]
[1732097533668,2.2,237.6,237.56,2.1027]
[1732097534765,2.2,237.6,237.47,7.65537264]
[1732097534971,2.12,237.6,237.52,10.20627965]
[1732097536668,2.12,237.6,237.55,6.52740604]
[1732097537966,2.12,237.62,237.55,6.52740604]
[1732097538468,6.52740604,237.6,237.5,5.12696965]
[1732097538663,6.52740604,237.58,237.49,6.52740604]
[1732097539469,2.12,237.57,237.51,2.1031]
[1732097540669,2.12,237.57,237.47,6.52740604]
[1732097540670,6.52740604,237.56,237.47,6.52740604]
[1732097541169,6.52740604,237.54,237.46,2.5325]
[1732097541366,6.52740604,237.54,237.46,9.05990604]
[1732097541771,6.52740604,237.54,237.49,2.1033]
[1732097543072,6.52740604,237.56,237.49,2.1033]
[1732097545076,6.52740604,237.56,237.48,6.52740604]
[1732097545275,6.52740604,237.56,237.5,2.1032]
[1732097546469,6.52740604,237.54,237.48,2.1034]
[1732097548577,8.63030604,237.54,237.48,2.1034]
[1732097548774,6.52740604,237.54,237.48,2.1034]
[1732097548979,6.52740604,237.54,237.49,2.1033]
[1732097549377,8.63020604,237.56,237.47,6.52740604]
[1732097550274,2.12,237.57,237.49,6.52740604]
[1732097550579,2.12,237.58,237.53,6.52740604]
[1732097550775,2.12,237.58,237.51,6.52740604]
[1732097551180,2.12,237.58,237.53,2.1029]
[1732097552178,2.12,237.58,237.54,2.1029]
[1732097552378,2.12,237.58,237.51,6.52740604]
[1732097553282,2.12,237.58,237.55,2.1027]
[1732097553884,8.64740604,237.59,237.55,2.1027]
[1732097554679,6.52740604,237.57,237.46,2.5325]
[1732097554878,6.52740604,237.55,237.47,5.14578245]
[1732097555176,2.12,237.54,237.48,5.14578245]
[1732097555382,6.52740604,237.53,237.46,1.2496]
[1732097555578,6.52740604,237.49,237.41,6.52740604]
[1732097555780,2.12,237.48,237.42,11.73916273]
[1732097555973,2.12,237.48,237.43,7.68475276]
[1732097556175,2.12,237.48,237.41,6.52740604]
[1732097556380,2.12,237.48,237.42,7.68795894]
[1732097556576,2.12,237.48,237.41,6.52740604]
[1732097556782,2.12,237.48,237.42,5.15270025]
[1732097557083,2.12,237.48,237.42,2.1039]
[1732097558275,2.12,237.48,237.4,3.3758]
[1732097558480,2.12,237.48,237.41,7.69080734]
[1732097558684,6.52740604,237.47,237.4,3.3758]
[1732097558878,6.52740604,237.47,237.41,2.104]
[1732097560683,8.63090604,237.47,237.39,8.63160604]
[1732097561284,8.63090604,237.47,237.39,6.52740604]
[1732097561885,8.63090604,237.47,237.38,1.1803]
[1732097562281,8.63090604,237.47,237.4,2.1041]
[1732097562482,8.63090604,237.47,237.38,1.1803]
[1732097562785,6.52740604,237.45,237.36,2.1044]
[1732097564384,8.63110604,237.45,237.36,2.1044]
[1732097565979,6.52740604,237.45,237.39,2.1042]
[1732097567287,6.52740604,237.45,237.37,6.52740604]
[1732097568383,2.12,237.45,237.37,6.52740604]
[1732097569089,2.12,237.45,237.35,2.1045]
[1732097569291,2.12,237.45,237.36,6.52740604]
[1732097570395,2.12,237.45,237.39,2.1041]
[1732097572586,6.52740604,237.44,237.39,2.1041]
[1732097581199,6.52740604,237.44,237.36,6.52740604]
[1732097581401,6.52740604,237.44,237.4,2.1041]
[1732097582700,2.1034,237.48,237.42,2.1039]
[1732097582899,2.4522,237.57,237.33,2.12]
[1732097583095,6.52740604,237.49,237.4,6.52740604]
[1732097583398,4.2234,237.48,237.42,2.1039]
[1732097583606,4.2234,237.48,237.4,6.52740604]
[1732097584202,4.2234,237.48,237.41,2.104]
[1732097585496,8.63090604,237.47,237.38,6.52740604]
[1732097585798,6.52740604,237.45,237.33,2.12]
[1732097585998,6.52740604,237.45,237.34,7.67190734]
[1732097586203,6.52740604,237.47,237.37,6.52740604]
[1732097587301,8.63090604,237.47,237.4,2.1041]
[1732097588803,8.63090604,237.47,237.41,2.104]
[1732097589700,8.63090604,237.47,237.39,6.52740604]
[1732097589906,8.63090604,237.47,237.42,2.1039]
[1732097591206,2.12,237.46,237.42,2.1039]
[1732097593006,2.12,237.46,237.43,2.1038]
[1732097593201,2.12,237.46,237.41,6.52740604]
[1732097594002,6.52740604,237.5,237.41,6.52740604]
[1732097594200,6.52740604,237.5,237.36,4.05492057]
[1732097594201,8.63050604,237.52,237.43,6.52740604]
[1732097594411,2.12,237.51,237.43,6.52740604]
[1732097594616,2.12,237.51,237.48,2.1034]
[1732097595011,2.12,237.51,237.43,6.52740604]
[1732097596210,2.12,237.51,237.47,2.1034]
[1732097600015,2.12,237.51,237.48,2.1034]
[1732097600512,2.12,237.51,237.5,2.1032]
[1732097600813,7.52740604,237.56,237.49,6.52740604]
[1732097601016,2.12,237.54,237.49,6.52740604]
[1732097601215,2.12,237.54,237.53,2.1029]
[1732097601416,2.12,237.54,237.49,6.52740604]
[1732097602321,2.12,237.54,237.51,2.1031]
[1732097603224,7.52740604,237.56,237.51,2.1031]
[1732097603418,2.12,237.54,237.51,2.1031]
[1732097603620,6.52740604,237.52,237.39,2.4321]
[1732097604123,4.19660121,237.54,237.39,2.4321]
[1732097604124,6.52740604,237.46,237.39,2.4321]
[1732097604320,2.12,237.45,237.39,2.4321]
[1732097604522,2.12,237.45,237.42,2.1038]
[1732097610928,2.12,237.45,237.43,2.1038]
[1732097612930,8.64740604,237.45,237.32,5.83957792]
[1732097613229,2.12,237.45,237.33,11.75575433]
[1732097613431,6.52740604,237.41,237.34,7.69471353]
[1732097613626,6.52740604,237.41,237.34,2.5381505]
[1732097613829,2.12,237.4,237.35,7.69540049]
[1732097614030,2.12,237.4,237.34,6.52740604]
[1732097614231,2.12,237.4,237.35,7.69525221]
[1732097614434,2.12,237.4,237.38,2.1043]
[1732097615035,6.52740604,237.49,237.38,6.52740604]
[1732097615234,2.12,237.48,237.42,6.52740604]
[1732097615736,2.12,237.48,237.4,6.52740604]
[1732097616333,2.12,237.48,237.42,2.1039]
[1732097618534,1.2716,237.53,237.4,6.52740604]
[1732097618829,1.0,237.56,237.48,6.52740604]
[1732097619030,2.12,237.59,237.54,6.52740604]
[1732097619234,2.12,237.59,237.52,6.52740604]
[1732097619437,2.12,237.59,237.5,6.52740604]
[1732097620337,2.12,237.59,237.43,2.12]
[1732097620338,6.52740604,237.56,237.43,2.12]
[1732097620536,2.12,237.59,237.49,6.52740604]
[1732097620832,3.7558,237.65,237.57,6.52740604]
[1732097620833,6.52740604,237.65,237.57,6.52740604]
[1732097621038,2.12,237.64,237.57,6.52740604]
[1732097621436,2.12,237.64,237.58,2.1025]
[1732097621635,2.12,237.64,237.57,6.52740604]
[1732097623136,6.52740604,237.63,237.55,6.52740604]
[1732097623337,6.52740604,237.6,237.53,8.92620604]
[1732097623537,6.52740604,237.58,237.49,6.52740604]
[1732097623839,2.12,237.57,237.52,2.103]
[1732097624935,2.12,237.57,237.45,7.65999271]
[1732097625135,6.52740604,237.56,237.45,2.52668242]
[1732097625337,6.52740604,237.56,237.47,6.52740604]
[1732097627337,6.52740604,237.56,237.5,2.1032]
[1732097627937,6.52740604,237.54,237.5,2.1032]
[1732097628237,6.52740604,237.54,237.48,2.1033]
[1732097628642,6.52740604,237.54,237.45,6.52740604]
[1732097628844,6.52740604,237.54,237.49,2.1033]
[1732097630248,2.12,237.57,237.52,2.103]
[1732097631046,6.52740604,237.56,237.5,2.1031]
[1732097631841,6.52740604,237.56,237.47,6.52740604]
[1732097632038,6.52740604,237.56,237.51,2.1031]
[1732097633949,6.52740604,237.52,237.44,2.3824]
[1732097634248,2.12,237.51,237.44,8.90980604]
[1732097634438,2.12,237.51,237.44,7.71240604]
[1732097635648,2.12,237.51,237.44,1.185]
[1732097635847,2.12,237.51,237.46,2.1036]
[1732097636142,2.12,237.51,237.39,1.2084]
[1732097636143,6.52740604,237.5,237.4,6.52740604]
[1732097636342,6.52740604,237.5,237.41,5.13643934]
[1732097636548,6.52740604,237.5,237.4,6.52740604]
[1732097637351,6.52740604,237.5,237.43,2.1038]
[1732097637946,4.2232,237.51,237.44,8.63110604]
[1732097638844,4.2232,237.51,237.44,2.1037]
[1732097639245,6.52740604,237.5,237.44,2.1037]
[1732097640256,6.52740604,237.5,237.45,2.1036]
[1732097640446,6.52740604,237.48,237.39,1.2084]
[1732097640748,6.52740604,237.48,237.4,6.52740604]
[1732097640953,8.63080604,237.48,237.4,6.52740604]
[1732097641154,6.52740604,237.46,237.35,1.2652]
[1732097641448,13.8752,237.61,237.42,6.52740604]
[1732097641449,1.2652,237.61,237.42,6.52740604]
[1732097641755,6.52740604,237.52,237.44,6.52740604]
[1732097641952,2.12,237.51,237.44,6.52740604]
[1732097642151,2.12,237.51,237.38,7.66163634]
[1732097642449,2.12,237.51,237.43,6.52740604]
[1732097642651,6.52740604,237.5,237.43,6.52740604]
[1732097643053,6.52740604,237.5,237.43,8.63110604]
[1732097643249,6.52740604,237.5,237.43,6.52740604]
[1732097644049,6.52740604,237.5,237.45,2.1036]
[1732097644953,6.52740604,237.5,237.46,2.1035]
[1732097646154,2.12,237.51,237.46,2.1035]
[1732097646448,6.52740604,237.5,237.46,2.1035]
[1732097647643,2.12,237.49,237.46,2.1035]
[1732097651253,2.12,237.48,237.45,2.1036]
[1732097651453,2.12,237.48,237.44,6.52740604]
[1732097651650,2.12,237.48,237.46,6.52740604]
[1732097652046,6.52740604,237.53,237.48,2.1034]
[1732097652255,2.12,237.52,237.48,2.1034]
[1732097653954,1.0,237.6,237.48,6.52740604]
[1732097654154,6.52740604,237.57,237.48,6.52740604]
[1732097654453,2.1027,237.56,237.51,2.1031]
[1732097655451,8.63000604,237.57,237.48,6.52740604]
[1732097656361,8.63000604,237.57,237.51,2.1031]
[1732097658459,6.52740604,237.55,237.51,2.1031]
[1732097658652,2.12,237.54,237.51,2.1031]
[1732097658851,2.12,237.54,237.52,2.103]
[1732097659558,2.12,237.54,237.44,1.2433]
[1732097659760,6.52740604,237.53,237.45,6.52740604]
[1732097660855,6.52740604,237.53,237.49,2.1033]
[1732097668367,2.12,237.54,237.49,2.1033]
[1732097668761,2.12,237.54,237.5,2.1032]
[1732097676469,1.0,237.6,237.53,2.1029]
[1732097676674,1.0,237.6,237.5,6.52740604]
[1732097676675,2.12,237.59,237.5,6.52740604]
[1732097676875,6.52740604,237.58,237.5,6.52740604]
[1732097677279,8.62990604,237.58,237.48,2.1034]
[1732097677477,8.62990604,237.58,237.49,14.21314181]
[1732097677678,8.62990604,237.58,237.5,7.68573577]
[1732097677879,8.62990604,237.58,237.49,6.52740604]
[1732097678079,8.62990604,237.58,237.51,2.103]
[1732097678480,8.62990604,237.58,237.49,6.52740604]
[1732097678981,6.52740604,237.56,237.5,7.25823751]
[1732097679180,6.52740604,237.56,237.5,2.1031]
[1732097679779,2.1036,237.46,237.4,5.83957792]
[1732097680082,6.52740604,237.44,237.37,2.1043]
[1732097680283,6.52740604,237.44,237.38,5.16235283]
[1732097680479,2.12,237.45,237.38,2.1042]
[1732097680786,2.12,237.45,237.38,6.52740604]
[1732097680987,6.52740604,237.47,237.41,2.104]
[1732097681192,6.52740604,237.51,237.41,6.52740604]
[1732097681392,2.12,237.5,237.43,6.52740604]
[1732097681793,2.12,237.5,237.44,2.1037]
[1732097681988,2.12,237.5,237.43,6.52740604]
[1732097682291,6.52740604,237.45,237.38,2.1042]
[1732097682495,6.52740604,237.42,237.34,6.52740604]
[1732097682690,6.52740604,237.42,237.35,7.69412115]
[1732097682691,2.12,237.41,237.35,7.69412115]
[1732097682996,2.12,237.41,237.36,9.79852115]
[1732097683195,2.12,237.41,237.36,2.1044]
[1732097683400,2.12,237.4,237.36,6.52740604]
[1732097683591,2.12,237.39,237.37,5.1576527]
[1732097683796,2.12,237.39,237.36,6.52740604]
[1732097683995,2.12,237.39,237.37,5.15751543]
[1732097684198,2.12,237.39,237.36,6.52740604]
[1732097684395,2.12,237.39,237.38,2.1043]
[1732097685499,6.52740604,237.46,237.38,2.1043]
[1732097685692,2.12,237.45,237.42,2.1039]
[1732097687599,2.12,237.45,237.4,8.63140604]
[1732097687793,8.64740604,237.45,237.32,1.2455]
[1732097688002,1.0,237.49,237.42,6.52740604]
[1732097688203,2.12,237.48,237.43,2.1038]
[1732097689401,2.12,237.48,237.32,23.35831169]
[1732097689609,6.52740604,237.38,237.33,6.57660707]
[1732097689807,2.12,237.37,237.34,5.15529254]
[1732097690008,2.12,237.37,237.3,6.52740604]
[1732097690206,2.12,237.37,237.31,9.79210659]
[1732097690507,2.12,237.37,237.3,6.52740604]
[1732097690705,2.12,237.37,237.31,5.15356603]
[1732097690907,2.12,237.37,237.3,6.52740604]
[1732097691399,2.12,237.37,237.32,2.1048]
[1732097691603,2.12,237.37,237.28,0.22289]
[1732097691908,6.52740604,237.35,237.28,0.22289]
[1732097692202,8.63200604,237.35,237.28,0.22289]
[1732097692707,2.28,237.36,237.28,0.22289]
[1732097694908,6.52740604,237.35,237.28,0.22289]
[1732097695207,6.52740604,237.33,237.28,0.22289]
[1732097698505,2.28,237.36,237.29,2.105]
[1732097698717,6.52740604,237.34,237.28,0.22289]
[1732097699313,30.3,237.42,237.3,6.52740604]
[1732097699514,6.52740604,237.39,237.3,6.52740604]
[1732097699712,6.52740604,237.39,237.32,2.1048]
[1732097699909,6.52740604,237.38,237.3,6.52740604]
[1732097700309,6.52740604,237.38,237.33,2.1047]
[1732097700310,2.28,237.37,237.33,2.1047]
[1732097701308,2.28,237.37,237.32,2.1048]
[1732097702610,8.80740604,237.37,237.32,2.1048]
[1732097703111,2.1037,237.45,237.37,2.1043]
[1732097703309,6.52740604,237.44,237.36,6.52740604]
[1732097703514,2.28,237.43,237.36,6.52740604]
[1732097703712,6.52740604,237.4,237.34,1.2715]
[1732097704209,6.52740604,237.4,237.36,2.1044]
[1732097704813,6.52740604,237.4,237.37,2.1043]
[1732097705313,6.52740604,237.4,237.35,2.1045]
[1732097706017,6.52740604,237.4,237.33,1.2326]
[1732097706209,6.52740604,237.4,237.33,3.3373]
[1732097706411,6.52740604,237.36,237.26,6.52740604]
[1732097706614,2.28,237.35,237.28,6.75029604]
[1732097706818,6.52740604,237.41,237.32,6.52740604]
[1732097707007,2.28,237.4,237.32,6.52740604]
[1732097707510,1.0,237.47,237.38,6.52740604]
[1732097707717,2.28,237.46,237.38,6.52740604]
[1732097709314,2.28,237.46,237.41,2.104]
[1732097710515,2.28,237.46,237.4,2.1041]
[1732097711614,0.4028,237.57,237.42,6.52740604]
[1732097711615,6.52740604,237.51,237.42,6.52740604]
[1732097711818,2.28,237.5,237.44,6.52740604]
[1732097712012,2.28,237.5,237.35,1.1972]
[1732097712013,2.28,237.51,237.49,2.1033]
[1732097715213,2.1025,237.59,237.52,2.103]
[1732097715513,8.80740604,237.58,237.5,6.52740604]
[1732097715720,2.28,237.57,237.48,6.52740604]
[1732097716217,2.06057272,237.64,237.48,6.52740604]
[1732097716218,2.1024,237.6,237.52,2.103]
[1732097716414,2.28,237.56,237.52,2.103]
[1732097716917,6.52740604,237.53,237.45,6.52740604]
[1732097717114,6.52740604,237.51,237.43,6.52740604]
[1732097717520,2.28,237.5,237.43,6.52740604]
[1732097719622,2.28,237.5,237.47,2.1035]
[1732097719919,2.28,237.5,237.43,6.52740604]
[1732097720517,2.28,237.5,237.44,2.1037]
[1732097720719,6.52740604,237.49,237.42,1.2839]
[1732097721216,6.52740604,237.49,237.43,2.1038]
[1732097721421,6.52740604,237.49,237.42,1.2839]
[1732097721618,2.22,237.5,237.42,1.2839]
[1732097721823,8.74740604,237.5,237.42,1.2839]
[1732097723423,8.74740604,237.5,237.45,2.1036]
[1732097723722,8.74740604,237.5,237.42,1.2839]
[1732097724118,8.74740604,237.5,237.45,2.1036]
[1732097725125,2.22,237.5,237.45,2.1036]
[1732097725422,2.22,237.5,237.48,2.1034]
[1732097725625,2.06057272,237.64,237.47,6.52740604]
[1732097725821,6.52740604,237.56,237.5,2.1032]
[1732097726026,2.22,237.55,237.5,2.1032]
[1732097726623,6.52740604,237.56,237.5,2.1032]
[1732097726821,2.22,237.55,237.5,2.1032]
[1732097727619,2.22,237.55,237.51,2.1031]
[1732097728318,6.52740604,237.56,237.51,2.1031]
[1732097728515,2.22,237.55,237.47,6.52740604]
[1732097728716,2.22,237.55,237.52,2.103]
[1732097731220,6.52740604,237.54,237.52,2.103]
[1732097732823,6.52740604,237.54,237.42,1.2839]
[1732097732824,8.63030604,237.54,237.42,1.2839]
[1732097733023,6.52740604,237.52,237.43,6.52740604]
[1732097733327,6.52740604,237.5,237.42,1.2839]
[1732097733520,2.22,237.49,237.42,1.2839]
[1732097734425,2.22,237.49,237.45,2.1036]
[1732097734828,2.22,237.49,237.43,6.52740604]
[1732097735525,2.22,237.49,237.44,2.1037]
[1732097735722,2.22,237.49,237.43,6.52740604]
[1732097736725,2.22,237.49,237.45,2.1036]
[1732097738530,2.22,237.49,237.46,2.1036]
[1732097739133,2.22,237.49,237.47,2.1034]
[1732097739429,2.22,237.49,237.47,6.52740604]
[1732097739627,2.22,237.52,237.5,2.1031]
[1732097740427,2.22,237.52,237.5,2.1032]
[1732097744240,2.22,237.52,237.51,2.1031]
[1732097744729,2.22,237.52,237.5,2.1032]
[1732097746236,2.1026,237.58,237.5,2.1032]
[1732097746435,6.52740604,237.56,237.5,2.1032]
[1732097748338,6.52740604,237.54,237.5,2.1032]
[1732097750837,2.22,237.53,237.5,2.1032]
[1732097753039,2.22,237.53,237.52,2.103]
[1732097753438,2.22,237.53,237.48,6.52740604]
[1732097753639,2.22,237.53,237.51,2.1031]
[1732097754336,2.22,237.53,237.42,1.2839]
[1732097754337,2.22,237.53,237.5,2.1032]
[1732097755337,6.52740604,237.52,237.42,1.2839]
[1732097755533,6.52740604,237.52,237.43,11.74185473]
[1732097755739,6.52740604,237.52,237.44,11.74185473]
[1732097755936,6.52740604,237.52,237.45,11.74185473]
[1732097756133,6.52740604,237.52,237.46,7.69008957]
[1732097756342,6.52740604,237.52,237.47,7.69234502]
[1732097756536,6.52740604,237.52,237.48,7.69234502]
[1732097756742,6.52740604,237.52,237.42,7.81130604]
[1732097757037,6.52740604,237.5,237.43,11.74698378]
[1732097757242,6.52740604,237.5,237.44,11.74698378]
[1732097757441,4.323,237.53,237.45,11.74698378]
[1732097757737,6.52740604,237.52,237.46,7.69345025]
[1732097757942,6.52740604,237.5,237.46,2.53345845]
[1732097758142,6.52740604,237.5,237.42,1.2839]
[1732097758446,6.52740604,237.5,237.43,11.74897538]
[1732097758736,6.52740604,237.5,237.44,11.74897538]
[1732097758941,6.52740604,237.5,237.45,7.69474953]
[1732097759137,2.12,237.49,237.47,2.1035]
[1732097759336,2.12,237.49,237.42,1.2839]
[1732097759337,6.52740604,237.48,237.42,1.2839]
[1732097759535,6.52740604,237.48,237.43,5.16171887]
[1732097759742,6.52740604,237.48,237.44,7.69604512]
[1732097759944,6.52740604,237.48,237.45,9.79974512]
[1732097760141,6.52740604,237.48,237.45,2.1037]
[1732097760642,2.12,237.49,237.45,2.1037]
[1732097761039,2.12,237.49,237.42,7.81130604]
[1732097761242,2.12,237.49,237.46,2.1036]
[1732097764748,8.64740604,237.49,237.46,2.1036]
[1732097766641,8.64740604,237.49,237.39,2.5446]
[1732097766844,8.64740604,237.49,237.41,2.104]
[1732097766845,6.52740604,237.47,237.41,2.104]
[1732097767040,6.52740604,237.47,237.42,7.69642313]
[1732097767242,6.52740604,237.47,237.43,5.1619676]
[1732097767442,6.52740604,237.47,237.42,2.1039]
[1732097768150,6.52740604,237.47,237.43,2.1038]
[1732097768648,10.75070604,237.49,237.43,2.1038]
[1732097769047,2.12,237.49,237.4,6.52740604]
[1732097769251,2.12,237.49,237.45,2.1036]
[1732097769450,2.12,237.49,237.42,6.52740604]
[1732097769645,2.12,237.49,237.43,7.69299053]
[1732097769846,2.12,237.49,237.42,6.52740604]
[1732097770045,2.12,237.49,237.43,7.6925351]
[1732097770247,2.12,237.49,237.44,5.15915937]
[1732097770450,2.12,237.49,237.42,6.52740604]
[1732097770655,2.12,237.49,237.43,7.69180911]
[1732097770853,2.12,237.49,237.44,5.15887274]
[1732097771047,2.12,237.49,237.46,2.1035]
[1732097774854,6.52740604,237.5,237.42,6.52740604]
[1732097775154,2.12,237.49,237.43,7.6897524]
[1732097775460,2.12,237.48,237.44,7.6897524]
[1732097775655,2.12,237.48,237.42,6.52740604]
[1732097775855,2.12,237.48,237.43,7.68984963]
[1732097776156,2.12,237.48,237.44,7.68984963]
[1732097776356,2.12,237.51,237.46,6.52740604]
[1732097776558,2.12,237.51,237.49,6.52740604]
[1732097776858,2.12,237.51,237.5,2.1032]
[1732097777355,2.12,237.51,237.5,7.25697196]
[1732097777663,2.12,237.51,237.5,2.1032]
[1732097778058,6.52740604,237.59,237.49,6.52740604]
[1732097778258,2.12,237.58,237.52,2.103]
[1732097778859,6.52740604,237.57,237.52,2.103]
[1732097779064,2.12,237.56,237.51,6.52740604]
[1732097779450,2.12,237.56,237.53,6.52740604]
[1732097779657,2.12,237.56,237.55,2.1027]
[1732097781564,2.12,237.57,237.55,2.1027]
[1732097782062,6.52740604,237.61,237.55,2.1027]
[1732097782359,2.12,237.57,237.53,6.52740604]
[1732097782558,2.12,237.57,237.56,2.1027]
[1732097783261,2.12,237.6,237.55,6.52740604]
[1732097783463,2.12,237.6,237.57,6.52740604]
[1732097784463,2.12,237.6,237.59,6.52740604]
[1732097785056,0.4044,237.76,237.59,6.52740604]
[1732097785362,6.52740604,237.68,237.59,6.52740604]
[1732097785560,2.12,237.67,237.59,6.52740604]
[1732097785754,2.12,237.67,237.62,2.1021]
[1732097785955,1.0,237.75,237.63,6.52740604]
[1732097786358,6.52740604,237.72,237.63,6.52740604]
[1732097787458,8.62870604,237.72,237.66,2.1018]
[1732097788365,6.52740604,237.7,237.66,2.1018]
[1732097789159,1.0,237.75,237.63,6.52740604]
[1732097789360,6.52740604,237.73,237.67,2.1017]
[1732097789860,8.62860604,237.73,237.67,2.1017]
[1732097790068,2.12,237.72,237.69,2.1015]
[1732097790365,2.12,237.72,237.65,6.52740604]
[1732097791358,2.12,237.72,237.68,2.1016]
[1732097792857,2.12,237.72,237.7,2.1014]
[1732097793661,2.12,237.72,237.68,2.1016]
[1732097793862,2.12,237.72,237.67,6.52740604]
[1732097794664,1.0,237.75,237.66,1.2042]
[1732097794971,0.4035,237.84,237.69,6.52740604]
[1732097794972,2.12,237.74,237.69,6.52740604]
[1732097795164,6.52740604,237.78,237.72,2.1012]
[1732097795371,2.12,237.77,237.71,6.52740604]
[1732097795567,6.52740604,237.8,237.71,6.52740604]
[1732097795767,2.12,237.79,237.74,2.1011]
[1732097798369,2.12,237.79,237.67,2.4525]
[1732097798370,6.52740604,237.78,237.67,2.4525]
[1732097798668,6.52740604,237.76,237.67,2.4525]
[1732097799267,2.1008,237.78,237.7,2.1014]
[1732097799568,6.52740604,237.78,237.7,6.52740604]
[1732097799970,2.12,237.79,237.7,6.52740604]
[1732097800270,2.12,237.79,237.67,2.4525]
[1732097800271,2.12,237.79,237.71,6.52740604]
[1732097800469,6.52740604,237.78,237.69,6.52740604]
[1732097800772,6.52740604,237.76,237.69,6.52740604]
[1732097800969,6.52740604,237.76,237.67,8.97990604]
[1732097801366,6.52740604,237.78,237.71,2.1013]
[1732097802872,6.52740604,237.78,237.69,6.52740604]
[1732097803071,8.62810604,237.78,237.72,2.1013]
[1732097803373,6.52740604,237.78,237.69,6.52740604]
[1732097803774,6.52740604,237.78,237.74,2.1011]
[1732097804371,2.12,237.79,237.74,2.1011]
[1732097804871,2.12,237.79,237.75,2.101]
[1732097805172,2.12380763,237.84,237.71,6.52740604]
[1732097805469,6.52740604,237.82,237.76,2.1009]
[1732097805669,6.52740604,237.82,237.73,6.52740604]
[1732097806073,8.62780604,237.82,237.77,2.1008]
[1732097806273,6.52740604,237.82,237.77,2.1008]